bitfinex/quotes_SOLUSD_20230120
["timestamp","ask_amount","ask_price","bid_price","bid_amount"]
[1674194954988,35.6,21.069,21.055,10.0]
[1674194955304,20.0,21.068,21.055,10.0]
[1674194955709,20.0,21.07,21.055,10.0]
[1674194956650,0.96,21.069,21.055,10.0]
[1674194956860,20.0,21.07,21.055,10.0]
[1674194957295,10.0,21.069,21.055,10.0]
[1674194957507,20.0,21.068,21.055,10.0]
[1674194958462,10.0,21.066,21.054,119.5947]
[1674194958644,36.57,21.065,21.054,119.5947]
[1674194958862,17.0,21.064,21.048,112.4013]
[1674194959184,57.53,21.063,21.046,35.64]
[1674194959382,27.0,21.062,21.041,145.3472]
[1674194959594,10.0,21.06,21.041,145.3472]
[1674194959804,73.58,21.059,21.041,145.3472]
[1674194960015,0.96,21.058,21.041,145.3472]
[1674194960242,0.96,21.057,21.044,10.0]
[1674194960453,0.96,21.056,21.044,10.0]
[1674194960670,0.96,21.055,21.044,10.0]
[1674194960983,0.96,21.055,21.041,145.3472]
[1674194960984,0.96,21.054,21.041,145.3472]
[1674194961173,0.96,21.053,21.04,15.39]
[1674194961380,0.96,21.052,21.035,45.66]
[1674194961592,0.96,21.051,21.036,10.0]
[1674194961825,0.96,21.05,21.036,10.0]
[1674194962026,17.0,21.051,21.038,10.0]
[1674194962337,17.0,21.051,21.041,10.0]
[1674194962770,0.96,21.05,21.041,45.65]
[1674194965816,0.96,21.05,21.041,10.0]
[1674194966548,55.62,21.057,21.041,10.0]
[1674194966737,20.0,21.057,21.041,10.0]
[1674194966956,20.0,21.058,21.041,10.0]
[1674194967166,20.0,21.058,21.043,10.0]
[1674194967898,18.92,21.057,21.043,123.1161]
[1674194968105,17.0,21.056,21.043,123.1161]
[1674194968313,1.92,21.055,21.043,123.1161]
[1674194968537,0.96,21.054,21.043,123.1161]
[1674194968745,1.92,21.057,21.043,123.1161]
[1674194968957,18.92,21.057,21.043,123.1161]
[1674194970112,35.61,21.061,21.043,123.1161]
[1674194970331,211.3235602,21.088,21.043,123.1161]
[1674194970332,35.61,21.065,21.045,10.0]
[1674194970640,35.61,21.065,21.047,10.0]
[1674194971267,35.61,21.065,21.048,20.0]
[1674194971593,35.61,21.065,21.049,10.0]
[1674194971804,35.6,21.068,21.05,51.02]
[1674194972017,49.88593984,21.072,21.05,160.5509]
[1674194972220,49.88593984,21.072,21.051,10.0]
[1674194972537,49.88593984,21.072,21.052,35.63]
[1674194972748,49.88593984,21.072,21.053,10.0]
[1674194972936,20.0,21.071,21.055,10.0]
[1674194973149,18.92,21.07,21.055,10.0]
[1674194973364,20.0,21.069,21.055,10.0]
[1674194973564,18.92,21.068,21.055,10.0]
[1674194973777,20.0,21.067,21.055,10.0]
[1674194974009,17.0,21.066,21.055,10.0]
[1674194974195,0.96,21.065,21.055,10.0]
[1674194974409,0.96,21.064,21.054,143.7945]
[1674194974828,0.96,21.064,21.054,108.1645]
[1674194975263,17.96,21.064,21.054,108.1645]
[1674194975464,0.96,21.063,21.05,109.5309]
[1674194975674,0.96,21.062,21.05,109.5309]
[1674194975891,0.96,21.061,21.05,109.5309]
[1674194976114,0.96,21.06,21.05,109.5309]
[1674194976332,0.96,21.059,21.05,109.5309]
[1674194976542,0.96,21.058,21.05,109.5309]
[1674194976856,0.96,21.057,21.05,109.5309]
[1674194977361,48.19878777,21.079,21.051,10.0]
[1674194977571,1.92,21.063,21.051,10.0]
[1674194977780,0.96,21.063,21.051,10.0]
[1674194978211,35.61,21.066,21.051,10.0]
[1674194978430,35.6,21.068,21.051,10.0]
[1674194978620,35.6,21.071,21.052,55.63]
[1674194978837,35.59,21.078,21.053,10.96]
[1674194979053,10.0,21.077,21.054,35.63]
[1674194979275,35.59,21.076,21.055,20.0]
[1674194979595,35.59,21.076,21.056,45.62]
[1674194979776,35.59,21.076,21.057,20.0]
[1674194979987,35.59,21.076,21.06,15.28]
[1674194980212,18.92,21.075,21.06,15.28]
[1674194981263,10.0,21.074,21.058,129.1726]
[1674194981559,53.55,21.073,21.058,129.1726]
[1674194981770,0.96,21.072,21.058,129.1726]
[1674194981980,0.96,21.071,21.058,129.1726]
[1674194982194,0.96,21.07,21.058,129.1726]
[1674194982743,0.96,21.07,21.058,119.1726]
[1674194983266,0.96,21.069,21.058,119.1726]
[1674194983458,0.96,21.068,21.058,119.1726]
[1674194983670,0.96,21.067,21.058,119.1726]
[1674194984322,0.96,21.066,21.058,119.1726]
[1674194984515,0.96,21.065,21.058,119.1726]
[1674194984728,0.96,21.064,21.058,119.1726]
[1674194987146,0.96,21.063,21.058,119.1726]
[1674194987471,0.96,21.063,21.054,108.2392]
[1674194987676,0.96,21.062,21.054,108.2392]
[1674194987893,0.96,21.061,21.054,108.2392]
[1674194988098,0.96,21.06,21.054,108.2392]
[1674194988516,0.96,21.059,21.054,108.2392]
[1674194988833,0.96,21.058,21.054,108.2392]
[1674194990505,35.61,21.063,21.055,10.0]
[1674194990714,35.61,21.066,21.055,10.0]
[1674194991130,55.6,21.067,21.055,10.0]
[1674194991358,20.0,21.067,21.055,10.0]
[1674194991676,20.0,21.069,21.055,10.0]
[1674194992519,35.6,21.071,21.056,20.0]
[1674194992841,35.59,21.076,21.057,10.0]
[1674194993043,35.59,21.076,21.058,20.0]
[1674194993238,45.59,21.077,21.059,45.62]
[1674194993869,35.59,21.078,21.061,10.0]
[1674194994083,70.34601949,21.084,21.061,10.0]
[1674194994084,20.0,21.077,21.061,45.61]
[1674194994720,55.58,21.081,21.061,45.61]
[1674194996493,0.96,21.08,21.061,45.61]
[1674194997140,0.96,21.079,21.061,45.61]
[1674194997346,0.96,21.078,21.061,45.61]
[1674194997567,0.96,21.077,21.061,45.61]
[1674194997875,0.96,21.076,21.061,45.61]
[1674194998067,17.96,21.076,21.061,45.61]
[1674194998277,0.96,21.075,21.061,45.61]
[1674194998500,0.96,21.074,21.061,45.61]
[1674195003024,20.0,21.077,21.062,0.96]
[1674195003240,20.0,21.081,21.063,35.61]
[1674195003543,35.58,21.084,21.064,10.0]
[1674195003863,433.86953793,21.112,21.066,10.0]
[1674195003864,35.57,21.086,21.066,10.0]
[1674195004074,39.88593984,21.091,21.067,165.6244]
[1674195004278,65.57,21.09,21.068,10.0]
[1674195004492,65.57,21.09,21.069,35.6]
[1674195004695,10.0,21.089,21.07,10.0]
[1674195004921,55.57,21.088,21.07,10.0]
[1674195005336,55.57,21.088,21.07,44.31615605]
[1674195005556,39.88593984,21.096,21.071,35.6]
[1674195005746,10.0,21.094,21.072,10.0]
[1674195005958,35.56,21.093,21.073,35.59]
[1674195006607,10.0,21.091,21.074,10.0]
[1674195006802,18.92,21.09,21.074,10.0]
[1674195007012,20.0,21.089,21.074,10.0]
[1674195007542,20.0,21.092,21.074,10.0]
[1674195007858,20.0,21.092,21.076,10.0]
[1674195008584,35.56,21.091,21.076,10.0]
[1674195008797,20.0,21.09,21.076,10.0]
[1674195009003,18.92,21.089,21.076,10.0]
[1674195009213,20.0,21.088,21.076,10.0]
[1674195009436,18.92,21.087,21.076,10.0]
[1674195010387,17.96,21.087,21.076,10.0]
[1674195011329,20.0,21.088,21.076,10.0]
[1674195011652,20.0,21.092,21.076,10.0]
[1674195011871,20.0,21.094,21.076,10.0]
[1674195012175,35.56,21.093,21.076,10.0]
[1674195012364,20.0,21.092,21.076,10.0]
[1674195012786,18.92,21.091,21.076,10.0]
[1674195013004,20.0,21.09,21.076,10.0]
[1674195013230,18.92,21.089,21.076,10.0]
[1674195013731,20.0,21.088,21.076,10.0]
[1674195013941,17.96,21.087,21.076,10.0]
[1674195014154,17.96,21.087,21.077,20.0]
[1674195014469,35.56,21.093,21.078,10.0]
[1674195014701,35.56,21.095,21.078,123.5096]
[1674195015758,18.92,21.094,21.078,123.5096]
[1674195015960,35.56,21.093,21.078,123.5096]
[1674195016176,18.92,21.092,21.078,123.5096]
[1674195016365,35.56,21.091,21.076,111.0423]
[1674195016576,10.0,21.089,21.076,111.0423]
[1674195016791,17.96,21.088,21.076,111.0423]
[1674195017014,10.0,21.086,21.076,111.0423]
[1674195017211,18.92,21.085,21.076,111.0423]
[1674195018170,18.92,21.085,21.072,110.0174]
[1674195018381,35.58,21.084,21.072,110.0174]
[1674195018704,17.0,21.083,21.073,10.0]
[1674195019111,17.0,21.085,21.073,10.0]
[1674195019440,0.96,21.084,21.073,10.0]
[1674195019626,0.96,21.085,21.073,10.0]
[1674195019835,17.0,21.086,21.073,10.0]
[1674195020986,20.0,21.087,21.073,10.0]
[1674195021200,20.0,21.091,21.073,45.59]
[1674195021847,35.57,21.09,21.073,45.59]
[1674195022052,20.0,21.089,21.073,45.59]
[1674195022259,18.92,21.088,21.072,110.0174]
[1674195022480,65.57,21.087,21.072,110.0174]
[1674195022797,1.92,21.086,21.072,110.0174]
[1674195023011,18.92,21.086,21.072,110.0174]
[1674195023407,20.0,21.087,21.072,110.0174]
[1674195023741,20.0,21.091,21.073,10.0]
[1674195023955,35.57,21.09,21.073,10.0]
[1674195024138,30.0,21.089,21.073,10.0]
[1674195024354,35.57,21.088,21.073,10.0]
[1674195024570,20.0,21.087,21.073,10.0]
[1674195024773,18.92,21.086,21.073,10.0]
[1674195027608,20.0,21.087,21.073,23.83615605]
[1674195027815,35.56,21.095,21.075,10.0]
[1674195028136,45.56,21.096,21.077,10.0]
[1674195028347,45.56,21.096,21.078,35.59]
[1674195028569,45.56,21.096,21.079,10.0]
[1674195028773,35.56,21.096,21.079,10.0]
[1674195029604,35.56,21.096,21.081,10.0]
[1674195030245,18.92,21.095,21.081,10.0]
[1674195030440,1.92,21.095,21.081,10.0]
[1674195033077,1.92,21.095,21.08,118.1261]
[1674195033416,1.92,21.095,21.081,10.0]
[1674195034554,37.48,21.095,21.081,10.0]
[1674195034764,1.92,21.095,21.081,10.0]
[1674195035179,18.92,21.095,21.081,10.0]
[1674195035387,1.92,21.095,21.081,10.0]
[1674195035719,35.55,21.097,21.081,10.0]
[1674195035934,35.54,21.102,21.081,45.58]
[1674195036132,20.0,21.101,21.081,45.58]
[1674195036341,35.55,21.1,21.081,45.58]
[1674195036555,20.0,21.099,21.081,45.58]
[1674195037171,20.0,21.102,21.081,45.58]
[1674195037389,35.55,21.101,21.082,0.96]
[1674195037707,20.96,21.1,21.082,0.96]
[1674195037922,35.55,21.099,21.081,45.58]
[1674195038128,10.0,21.097,21.081,45.58]
[1674195038343,0.96,21.096,21.081,45.58]
[1674195038558,0.96,21.095,21.081,45.58]
[1674195040132,0.96,21.094,21.081,45.58]
[1674195040346,0.96,21.093,21.081,45.58]
[1674195040564,0.96,21.092,21.081,45.58]
[1674195041378,0.96,21.092,21.081,10.0]
[1674195042118,0.96,21.091,21.081,10.0]
[1674195042452,0.96,21.09,21.081,10.0]
[1674195042851,0.96,21.09,21.08,118.1261]
[1674195043084,0.96,21.089,21.08,118.1261]
[1674195043503,0.96,21.088,21.076,173.9431]
[1674195043703,0.96,21.087,21.076,138.3531]
[1674195043909,0.96,21.086,21.076,118.3531]
[1674195044120,0.96,21.085,21.076,118.3531]
[1674195044334,0.96,21.084,21.076,118.3531]
[1674195044998,0.96,21.084,21.073,147.3579]
[1674195045213,0.96,21.083,21.073,111.7679]
[1674195045420,0.96,21.082,21.073,111.7679]
[1674195045653,0.96,21.081,21.073,111.7679]
[1674195045951,0.96,21.08,21.073,111.7679]
[1674195046889,17.0,21.084,21.073,111.7679]
[1674195047082,1.92,21.083,21.074,10.0]
[1674195047711,1.92,21.083,21.073,111.7679]
[1674195050464,1.92,21.083,21.068,35.6]
[1674195050659,1.92,21.083,21.061,151.5291]
[1674195050871,1.92,21.083,21.067,10.0]
[1674195050872,35.58,21.082,21.067,10.0]
[1674195051075,18.92,21.081,21.068,20.0]
[1674195051285,18.92,21.081,21.069,10.0]
[1674195053520,17.96,21.081,21.069,10.0]
[1674195059596,0.96,21.08,21.069,10.0]
[1674195059806,0.96,21.079,21.069,10.0]
[1674195060032,0.96,21.078,21.069,10.0]
[1674195060235,0.96,21.077,21.058,35.62]
[1674195060543,0.96,21.077,21.05,20.32]
[1674195060544,36.55,21.076,21.055,35.62]
[1674195060762,10.96,21.075,21.056,10.0]
[1674195060973,53.55,21.074,21.056,10.0]
[1674195061181,0.96,21.073,21.056,10.0]
[1674195061392,0.96,21.072,21.056,10.0]
[1674195061604,0.96,21.071,21.056,10.0]
[1674195061817,0.96,21.07,21.056,10.0]
[1674195062039,0.96,21.069,21.056,10.0]
[1674195062231,0.96,21.069,21.062,10.0]
[1674195063381,0.96,21.069,21.057,35.62]
[1674195063593,0.96,21.069,21.058,10.0]
[1674195064240,17.0,21.072,21.058,10.0]
[1674195064438,0.96,21.071,21.058,10.0]
[1674195064648,0.96,21.072,21.058,10.0]
[1674195064964,35.58,21.079,21.059,35.62]
[1674195065188,20.0,21.078,21.062,45.61]
[1674195065799,20.0,21.079,21.062,45.61]
[1674195066748,55.58,21.079,21.062,10.0]
[1674195066965,18.92,21.078,21.062,10.0]
[1674195067179,20.0,21.077,21.062,10.0]
[1674195067392,18.92,21.076,21.062,10.0]
[1674195070351,10.0,21.075,21.061,115.9191]
[1674195070552,54.51,21.074,21.061,115.9191]
[1674195070762,10.0,21.073,21.061,115.9191]
[1674195071085,18.92,21.072,21.061,115.9191]
[1674195075181,18.92,21.072,21.056,10.0]
[1674195075390,18.92,21.072,21.057,139.652]
[1674195075598,54.52,21.072,21.057,139.652]
[1674195075813,10.0,21.071,21.057,139.652]
[1674195076004,18.92,21.07,21.057,139.652]
[1674195076446,18.92,21.07,21.057,119.652]
[1674195076657,20.0,21.069,21.057,119.652]
[1674195076868,17.96,21.068,21.057,119.652]
[1674195077058,20.96,21.067,21.057,119.652]
[1674195077398,17.96,21.066,21.057,119.652]
[1674195077580,0.96,21.065,21.057,119.652]
[1674195077918,0.96,21.064,21.057,119.652]
[1674195078126,0.96,21.063,21.057,119.652]
[1674195078522,0.96,21.062,21.057,119.652]
[1674195080021,0.96,21.061,21.044,35.64]
[1674195080351,0.96,21.06,21.046,10.0]
[1674195080567,0.96,21.06,21.048,10.0]
[1674195080757,0.96,21.059,21.049,35.63]
[1674195080967,0.96,21.058,21.05,10.0]
[1674195081607,0.96,21.058,21.047,35.64]
[1674195081825,0.96,21.057,21.048,20.0]
[1674195082022,0.96,21.056,21.048,20.0]
[1674195082232,45.61,21.065,21.048,20.0]
[1674195082443,17.0,21.064,21.049,10.0]
[1674195082652,1.92,21.063,21.049,10.0]
[1674195083287,1.92,21.063,21.048,30.0]
[1674195083486,1.92,21.063,21.045,118.0395]
[1674195083487,35.61,21.062,21.045,118.0395]
[1674195083697,37.96,21.061,21.045,118.0395]
[1674195083903,10.0,21.059,21.045,118.0395]
[1674195084114,73.58,21.058,21.045,118.0395]
[1674195084328,98.29576951,21.058,21.045,118.0395]
[1674195084762,10.0,21.057,21.045,118.0395]
[1674195084980,53.58,21.056,21.034,10.0]
[1674195085190,54.54,21.056,21.035,35.66]
[1674195085506,78.29576951,21.056,21.035,35.66]
[1674195085713,78.29576951,21.056,21.036,20.0]
[1674195085900,10.0,21.055,21.038,10.0]
[1674195086112,54.55,21.054,21.038,10.0]
[1674195087503,54.55,21.054,21.037,10.0]
[1674195087715,54.55,21.054,21.038,20.0]
[1674195088340,54.55,21.054,21.039,10.0]
[1674195089603,54.55,21.054,21.035,10.0]
[1674195089792,10.0,21.053,21.035,45.66]
[1674195090018,10.0,21.051,21.035,10.0]
[1674195090215,18.92,21.05,21.035,10.0]
[1674195090968,18.92,21.05,21.037,10.0]
[1674195090969,1.92,21.05,21.037,10.0]
[1674195091181,17.0,21.049,21.038,20.0]
[1674195091383,0.96,21.048,21.038,20.0]
[1674195091581,1.92,21.05,21.038,20.0]
[1674195092108,35.63,21.054,21.038,20.0]
[1674195092865,10.0,21.053,21.038,20.0]
[1674195093261,17.0,21.052,21.038,20.0]
[1674195093471,1.92,21.051,21.038,20.0]
[1674195093903,0.96,21.051,21.038,20.0]
[1674195094226,0.96,21.051,21.039,10.0]
[1674195094418,0.96,21.052,21.039,45.65]
[1674195094629,0.96,21.052,21.039,10.0]
[1674195094970,0.96,21.053,21.039,10.0]
[1674195095486,0.96,21.052,21.039,10.0]
[1674195098539,0.96,21.052,21.038,55.65]
[1674195098750,53.59,21.052,21.038,20.0]
[1674195098935,0.96,21.051,21.038,20.0]
[1674195101980,10.96,21.051,21.038,20.0]
[1674195102185,17.96,21.05,21.038,20.0]
[1674195102400,0.96,21.049,21.038,20.0]
[1674195102612,0.96,21.048,21.038,20.0]
[1674195102850,0.96,21.047,21.036,20.0]
[1674195103165,0.96,21.046,21.037,10.0]
[1674195103350,0.96,21.045,21.038,20.0]
[1674195106305,35.62,21.056,21.038,20.0]
[1674195106515,35.62,21.056,21.039,10.0]
[1674195107261,55.62,21.058,21.04,50.97]
[1674195107472,20.0,21.058,21.04,50.97]
[1674195107684,20.0,21.057,21.041,10.0]
[1674195108417,24.81913859,21.092,21.041,10.0]
[1674195108418,35.6,21.069,21.042,55.65]
[1674195108633,35.6,21.069,21.044,10.0]
[1674195108829,20.0,21.068,21.045,55.64]
[1674195109163,35.6,21.067,21.046,10.0]
[1674195109380,35.6,21.067,21.047,55.64]
[1674195109585,35.6,21.067,21.05,15.25]
[1674195109895,43.75576951,21.068,21.051,152.4062]
[1674195110307,43.75576951,21.068,21.052,10.0]
[1674195110308,20.0,21.068,21.052,10.0]
[1674195110721,20.0,21.07,21.052,10.0]
[1674195110942,20.0,21.07,21.054,10.0]
[1674195111147,55.6,21.072,21.055,35.62]
[1674195111363,35.6,21.072,21.055,35.62]
[1674195111575,35.59,21.075,21.057,10.0]
[1674195111790,47.21857483,21.076,21.058,55.62]
[1674195112003,47.21857483,21.076,21.059,10.0]
[1674195112187,47.21857483,21.076,21.06,35.62]
[1674195112397,10.0,21.075,21.06,35.62]
[1674195112622,17.96,21.074,21.061,10.0]
[1674195112838,18.92,21.074,21.061,10.0]
[1674195113888,1.92,21.074,21.061,10.0]
[1674195114812,1.92,21.074,21.06,114.4347]
[1674195115026,10.0,21.073,21.06,114.4347]
[1674195115243,10.0,21.071,21.06,114.4347]
[1674195115548,18.92,21.07,21.06,114.4347]
[1674195117887,18.92,21.07,21.054,112.8903]
[1674195117888,10.0,21.068,21.054,112.8903]
[1674195118102,53.56,21.067,21.054,112.8903]
[1674195118310,54.52,21.067,21.054,112.8903]
[1674195119686,10.0,21.066,21.054,112.8903]
[1674195119899,18.92,21.065,21.054,112.8903]
[1674195121454,18.92,21.065,21.054,112.82934088]
[1674195123258,54.53,21.065,21.054,112.82934088]
[1674195123664,20.0,21.064,21.047,35.64]
[1674195123863,20.0,21.064,21.045,35.64]
[1674195123864,54.53,21.063,21.045,35.64]
[1674195124079,20.0,21.062,21.045,35.64]
[1674195124298,28.92,21.061,21.045,35.64]
[1674195124811,55.62,21.06,21.044,35.64]
[1674195125040,10.0,21.058,21.043,144.8786]
[1674195125248,38.92,21.057,21.043,144.8786]
[1674195126405,38.92,21.057,21.044,10.0]
[1674195127571,38.92,21.057,21.043,109.2386]
[1674195127774,10.0,21.056,21.043,109.2386]
[1674195127967,18.92,21.055,21.043,109.2386]
[1674195128386,10.0,21.054,21.043,109.2386]
[1674195128603,18.92,21.053,21.043,109.2386]
[1674195128820,35.63,21.052,21.043,109.2386]
[1674195129014,18.92,21.051,21.043,109.2386]
[1674195129752,17.0,21.05,21.043,109.2386]
[1674195129963,1.92,21.049,21.043,109.2386]
[1674195130184,0.96,21.048,21.041,109.9442]
[1674195130486,0.96,21.047,21.041,109.9442]
[1674195130697,0.96,21.046,21.041,109.9442]
[1674195130907,0.96,21.045,21.041,109.9442]
[1674195131147,0.96,21.044,21.041,109.9442]
[1674195132291,0.96,21.043,21.036,10.0]
[1674195132501,17.0,21.05,21.037,20.0]
[1674195132712,1.92,21.049,21.037,20.0]
[1674195132933,1.92,21.049,21.038,10.0]
[1674195133559,23.75576951,21.056,21.038,10.0]
[1674195133767,35.62,21.059,21.039,35.65]
[1674195134001,20.0,21.058,21.039,35.65]
[1674195134186,35.62,21.057,21.04,10.0]
[1674195134933,35.62,21.057,21.041,35.65]
[1674195135138,20.0,21.058,21.042,10.0]
[1674195135470,35.62,21.057,21.042,10.0]
[1674195135695,20.0,21.061,21.043,229.6653]
[1674195135866,20.0,21.061,21.044,10.0]
[1674195136409,35.62,21.06,21.044,45.64]
[1674195136617,20.0,21.059,21.044,45.64]
[1674195136814,20.0,21.059,21.044,10.0]
[1674195137235,55.61,21.063,21.044,10.0]
[1674195138292,18.92,21.062,21.044,10.0]
[1674195138504,55.61,21.061,21.044,10.0]
[1674195138709,18.92,21.06,21.044,10.0]
[1674195138922,20.0,21.059,21.044,10.0]
[1674195139127,18.92,21.058,21.044,10.0]
[1674195139568,20.0,21.057,21.044,10.0]
[1674195139783,17.96,21.056,21.044,10.0]
[1674195140176,35.61,21.061,21.046,10.0]
[1674195140386,35.61,21.066,21.047,35.64]
[1674195140606,59.35576951,21.067,21.048,20.0]
[1674195140933,23.75576951,21.066,21.049,10.0]
[1674195141145,35.61,21.065,21.049,10.0]
[1674195141548,0.96,21.064,21.049,10.0]
[1674195141980,35.61,21.063,21.049,10.0]
[1674195142199,1.92,21.062,21.049,10.0]
[1674195142385,18.92,21.062,21.049,10.0]
[1674195145972,35.61,21.063,21.049,10.0]
[1674195146193,35.6,21.068,21.049,10.0]
[1674195146500,43.75576951,21.067,21.049,10.0]
[1674195146715,35.61,21.066,21.049,10.0]
[1674195147445,18.92,21.065,21.049,10.0]
[1674195147652,17.96,21.065,21.049,10.0]
[1674195147859,35.61,21.064,21.049,45.63]
[1674195148072,43.75576951,21.067,21.05,20.5]
[1674195148290,20.0,21.067,21.051,45.63]
[1674195148797,55.6,21.069,21.051,10.0]
[1674195149012,17.96,21.068,21.052,116.6321]
[1674195149334,17.96,21.068,21.053,10.0]
[1674195149335,56.56,21.067,21.053,10.0]
[1674195149549,17.96,21.066,21.053,10.0]
[1674195149869,0.96,21.065,21.053,10.0]
[1674195150063,0.96,21.065,21.054,110.5065]
[1674195150284,0.96,21.065,21.055,10.0]
[1674195151972,0.96,21.065,21.054,110.5065]
[1674195152373,0.96,21.065,21.055,10.0]
[1674195154781,20.0,21.067,21.055,10.0]
[1674195154992,20.0,21.068,21.055,10.0]
[1674195155200,55.6,21.07,21.055,10.0]
[1674195156071,17.96,21.069,21.055,10.0]
[1674195156254,56.56,21.068,21.055,10.0]
[1674195156586,17.96,21.067,21.055,10.0]
[1674195156799,0.96,21.066,21.055,10.0]
[1674195159635,0.96,21.065,21.055,10.0]
[1674195159829,0.96,21.064,21.055,10.0]
[1674195164051,0.96,21.063,21.055,10.0]
[1674195164372,0.96,21.062,21.055,10.0]
[1674195164556,16.92,21.067,21.055,10.0]
[1674195164769,10.0,21.066,21.054,110.5065]
[1674195165417,52.52,21.067,21.055,10.0]
[1674195166698,0.96,21.066,21.055,10.0]
[1674195166883,0.96,21.065,21.055,10.0]
[1674195167097,0.96,21.064,21.055,10.0]
[1674195167303,0.96,21.063,21.055,10.0]
[1674195167838,0.96,21.062,21.055,10.0]
[1674195171098,0.96,21.062,21.054,110.5065]
[1674195171937,35.6,21.067,21.055,10.0]
[1674195172244,20.0,21.068,21.055,10.0]
[1674195173302,18.92,21.067,21.055,10.0]
[1674195176253,18.92,21.067,21.054,110.5065]
[1674195176774,10.0,21.065,21.054,110.5065]
[1674195176988,18.92,21.064,21.054,110.5065]
[1674195178461,35.6,21.067,21.055,10.0]
[1674195178651,43.75576951,21.068,21.055,10.0]
[1674195179075,20.0,21.068,21.055,10.0]
[1674195179388,20.0,21.067,21.055,10.0]
[1674195179611,18.92,21.066,21.055,10.0]
[1674195179808,1.92,21.066,21.055,10.0]
[1674195180221,18.92,21.066,21.055,10.0]
[1674195180769,35.6,21.071,21.056,20.0]
[1674195180968,35.59,21.075,21.056,55.62]
[1674195181179,23.75576951,21.078,21.056,55.62]
[1674195181511,23.75576951,21.078,21.057,10.0]
[1674195181512,10.0,21.076,21.057,10.0]
[1674195181713,10.0,21.076,21.059,10.0]
[1674195181920,33.75576951,21.076,21.059,10.0]
[1674195182240,17.96,21.075,21.059,10.0]
[1674195182858,35.59,21.074,21.059,10.0]
[1674195183067,17.96,21.073,21.059,10.0]